Cogmind - Beta 14 @@@ ROGUE MODE // 2024.08.13 @ 18:57:40 Player: jimmyl Result: Destroyed by B-86 Titan with Railgun Performance ------------- Evolutions (6) 3000 Regions Visited (13) 2600 Robots Destroyed (46) 230 Value Destroyed (1355) 1355 Prototype IDs (29) 580 Alien Tech Used (0) 0 Bonus (1164) 1164 TOTAL SCORE: 8929 Bonus ------- Follower Combat Kills 52 Aligned with FarCom 300 Met Warlord at Base 500 MAIN.C Attacked Warlord 500 Friendly Fire -188 Cogmind --------- Core Integrity 0/1150 Matter 300/300 Energy 100/100 System Corruption 0% Temperature Cool (0) Movement Core (200) Ox3 Location -3/Proximity Caves Parts ------- > --- POWER (2) -------- (None) > --- PROPULSION (4) --- (None) > --- UTILITY (11) ----- Advanced Cryofiber Web Machine Analyzer Improved Signal Interpreter Core Analyzer Hacking Suite > --- WEAPON (2) ------- RU-N14's Throwing Claymores v3 > --- INVENTORY (5) ---- Vortex Rail (40) Vortex Rail (40) Thermoblaster Peak State ------------ > --- POWER ------------ Backup Power III Backup Power III > --- PROPULSION ------- Backup Propulsion III Cesium-ion Thruster > --- UTILITY ---------- Advanced Cryofiber Web Improved Matter Compressor Machine Analyzer Improved Signal Interpreter Core Analyzer Core Analyzer Hacking Suite Hacking Suite > --- WEAPON ----------- RU-N14's Throwing Claymores v3 RU-N14's Throwing Claymores v3 > --- INVENTORY -------- Vortex Rail Vortex Rail Thermoblaster RU-N14's Throwing Claymores v3 Sapper Charge [Rating: 68] Favorites ----------- Power Improved Deuterium Engine Engine Improved Deuterium Engine Reactor Light Quantum Reactor Propulsion Compact Wheel Treads Light Treads Leg Aluminum Leg Wheel Compact Wheel Hover Unit Improved Hover Unit Flight Unit Cesium-ion Thruster Utility Core Analyzer Device Advanced Cryofiber Web Storage Small Storage Unit Processor Core Analyzer Hackware Hacking Suite Weapon Heavy Assault Cannon Energy Gun Spread Laser Ballistic Gun Assault Rifle Ballistic Cannon Heavy Assault Cannon Launcher Rocket Launcher Special Weapon RU-N14's Throwing Claymores v3 Slashing Weapon Scythe Build | -11 -10 -10 -10 -9 -8 -7 -6 -5 -4 -4 -4 -4 -3 ------- Run | Yrd Mat Min Exi Min Mat Fac Fac Fac Fac Upp Upp War Pro Slots Evolved 12 | . . . . . 4 2 2 2 2 . . . . Power 1 | . . . . . . . . 1 . . . . . Propulsion 2 | . . . . . 2 . . . . . . . . Utility 9 | . . . . . 2 2 2 1 2 . . . . Weapon . | . . . . . . . . . . . . . . Parts Attached 58 | . 1 4 . 3 20 2 . 3 3 7 2 9 4 Power 4 | . . 1 . . 1 . . . . 1 . 1 . Engine 2 | . . 1 . . 1 . . . . . . . . Core . | . . . . . . . . . . . . . . Reactor 2 | . . . . . . . . . . 1 . 1 . Propulsion 19 | . . 1 . 2 10 . . . . 4 1 1 . Treads 2 | . . . . 2 . . . . . . . . . Leg 3 | . . 1 . . 2 . . . . . . . . Wheel 3 | . . . . . 2 . . . . 1 . . . Hover 6 | . . . . . 4 . . . . 2 . . . Flight 5 | . . . . . 2 . . . . 1 1 1 . Utility 16 | . 1 . . . 6 2 . 3 1 . 1 2 . Device 7 | . 1 . . . 3 . . 2 . . 1 . . Storage 1 | . . . . . . . . 1 . . . . . Processor 5 | . . . . . 3 1 . . . . . 1 . Hackware 3 | . . . . . . 1 . . 1 . . 1 . Protection . | . . . . . . . . . . . . . . Artifact . | . . . . . . . . . . . . . . Weapon 19 | . . 2 . 1 3 . . . 2 2 . 5 4 Energy Gun 3 | . . 1 . . 1 . . . . . . 1 . Energy Cannon . | . . . . . . . . . . . . . . Ballistic Gun . | . . . . . . . . . . . . . . Ballistic Cannon 5 | . . . . . 2 . . . 1 1 . 1 . Launcher 4 | . . . . 1 . . . . 1 . . . 2 Special Weapon 5 | . . . . . . . . . . . . 3 2 Impact Weapon . | . . . . . . . . . . . . . . Slashing Weapon 2 | . . 1 . . . . . . . 1 . . . Piercing Weapon . | . . . . . . . . . . . . . . Special Melee Weapon . | . . . . . . . . . . . . . . Unidentified Prototypes 6 | . . . . . 2 . . 1 . . . 3 . Parts Lost 24 | . . 4 . . 4 . . . 4 6 1 . 5 Power 2 | . . 1 . . . . . . 1 . . . . Propulsion 10 | . . 1 . . 3 . . . 1 2 1 . 2 Utility 7 | . . . . . 1 . . . 1 2 . . 3 Weapon 5 | . . 2 . . . . . . 1 2 . . . Highest Loss Streak 5 | . . 4 . . 4 . . . 2 5 1 . 3 To Critical Strikes . | . . . . . . . . . . . . . . Average Slot Usage (%) 58 | . 98 87 71 92 59 57 60 57 58 44 35 55 42 Engine 6 | . 14 12 14 14 9 7 6 5 4 . . 3 . Leg 2 | . 28 22 14 3 . . . . . . . . . Wheel 6 | . . . . . 9 15 13 11 7 3 . . . Hover 1 | . . . . . 3 . . . . 2 . 1 . Device 4 | . 12 14 14 14 1 . . 1 9 3 4 5 5 Storage 7 | . 14 14 14 14 9 7 6 9 5 5 5 5 3 Processor 15 | . . . . . 16 19 20 17 15 15 15 20 18 Hackware 3 | . . . . . . . 6 5 9 9 5 9 8 Ballistic Gun 1 | . 28 8 . . . . . . . . . . . Ballistic Cannon 4 | . . . . . 7 7 6 5 4 . . . . Slashing Weapon 1 | . . 6 14 14 . . . . . 2 . . . Peak Build Rating 68 | . 8 14 11 13 32 29 29 47 47 48 31 68 52 Average Rating 29 | . 7 10 10 11 22 24 29 35 43 36 29 50 41 On Entrance 22 | 6 6 8 10 11 12 23 29 29 47 35 24 31 44 Naked Turns . | . . . . . . . . . . . . . . Heaviest Build 34 | 11 13 15 14 18 29 27 27 34 34 15 5 29 15 Greatest Support 40 | 20 20 25 15 40 40 32 32 32 32 16 5 10 10 Greatest Overweight (x) 5 | . . . . . 5 . . 1 1 3 . 5 4 Average Overweight (x) . | . . . . . . . . . . . . . 2 Largest Inventory Capacity 8 | . 8 8 8 8 8 8 8 8 8 5 5 5 5 Average Capacity 6 | . 8 8 8 8 8 8 8 8 5 5 5 5 5 Most Carried 8 | . 7 8 6 6 8 8 8 8 8 5 3 5 5 Average Carried 5 | . 6 6 5 3 6 8 8 8 4 4 2 4 3 Final Capacity 8 | 8 8 8 8 8 8 8 8 8 5 5 5 5 5 Final Carried 8 | 6 7 5 6 3 8 8 8 8 4 3 2 5 3 Class Distribution -------------------- 75% | Mutant 22% | Hacker-Mutant Dominant Class ---------------- Mutant | -10/Materials Mutant | -10/Mines Mutant | -10/Exiles Mutant | -9/Mines Mutant | -8/Materials Mutant | -7/Factory Mutant | -6/Factory Mutant | -5/Factory Hacker-Mutant | -4/Factory Hacker-Mutant | -4/Upper Caves Mutant | -4/Upper Caves Hacker-Mutant | -4/Warlord Hacker-Mutant | -3/Proximity Caves Resources | -11 -10 -10 -10 -9 -8 -7 -6 -5 -4 -4 -4 -4 -3 ----------- Run | Yrd Mat Min Exi Min Mat Fac Fac Fac Fac Upp Upp War Pro Matter Collected 1571 | 200 78 29 . . 623 18 10 328 84 71 . 105 25 Remotely . | . . . . . . . . . . . . . . Salvage Created 1205 | . 142 170 . 21 657 18 . . 12 96 . . 89 Parts 74 | . 8 6 . 10 37 1 . . 2 1 . . 9 Haulers Intercepted 1 | . . . . . 1 . . . . . . . . Recyclers Shooed 2 | . . . . . 1 . . . 1 . . . . Parts Field Recycled . | . . . . . . . . . . . . . . Retrieved Matter . | . . . . . . . . . . . . . . Parts Self-Destructed 6 | . . . . . . . . . . 1 . . 5 Prevented 2 | . . . . . . . . . . 2 . . . Kills | -11 -10 -10 -10 -9 -8 -7 -6 -5 -4 -4 -4 -4 -3 ------- Run | Yrd Mat Min Exi Min Mat Fac Fac Fac Fac Upp Upp War Pro Combat Hostiles Destroyed 33 | . 2 3 . 4 14 1 . . . 1 . . 8 Melee 2 | . . 1 . . . . . . . 1 . . . Guns 8 | . 2 2 . . 4 . . . . . . . . Cannons 15 | . . . . . 10 1 . . . . . . 4 AOE 8 | . . . . 4 . . . . . . . . 4 Classes Destroyed 12 | . 3 1 . 2 5 . . . 1 . . . . Worker 1 | . . . . . 1 . . . . . . . . Builder 1 | . . . . . . . . . 1 . . . . Tunneler 1 | . . . . 1 . . . . . . . . . Hauler 1 | . . . . . 1 . . . . . . . . Recycler 2 | . . . . . 2 . . . . . . . . Mechanic 2 | . 1 . . . 1 . . . . . . . . Operator 1 | . . . . . 1 . . . . . . . . Watcher 3 | . 1 . . . 2 . . . . . . . . Swarmer 19 | . . . . 4 6 1 . . . . . . 8 Grunt 11 | . 2 1 . . 7 . . . . 1 . . . Sentry 2 | . . 2 . . . . . . . . . . . Heavy 1 | . . . . . 1 . . . . . . . . Thug 1 | . . . . . . . . . . 1 . . . Best Kill Streak 6 | . 2 1 . 5 6 1 . . 1 1 . . 4 Combat Bots Only 5 | . 2 1 . 4 5 1 . . . 1 . . 4 Max Kills in Single Turn 2 | . 1 1 . 2 2 1 . . 1 1 . . 2 Gunslinging . | . . . . . . . . . . . . . . Exploded 2 | . . . . 2 . . . . . . . . 2 Melee 1 | . . 1 . . . . . . . 1 . . . Uniques/NPCs Destroyed . | . . . . . . . . . . . . . . Combat | -11 -10 -10 -10 -9 -8 -7 -6 -5 -4 -4 -4 -4 -3 -------- Run | Yrd Mat Min Exi Min Mat Fac Fac Fac Fac Upp Upp War Pro Hostile Shots Fired 303 | . 31 38 . 6 63 2 . . 21 92 8 2 40 Missed 112 | . 8 12 . 3 17 . . . 9 43 5 1 14 Damage Taken 3595 | . 248 427 . 70 677 32 3 87 422 914 53 55 607 Core 1534 | . 52 57 . 41 182 . 3 29 174 529 18 55 394 Absorbed by Shields . | . . . . . . . . . . . . . . Regen/Repaired (Parts) 42 | . . . . . 2 . . . . . . 40 . Core Remaining (%) 83 | 100 . . . 40 66 100 99 97 . . . . . Volleys Fired 104 | . 17 14 . 3 52 1 . 4 5 1 . . 7 Largest 2 | . 2 2 . 1 2 1 . 1 1 1 . . 1 Hottest 113 | . 40 83 . 33 113 60 . 60 48 48 . . . Shots Fired 130 | . 34 17 . 3 58 1 . 4 5 1 . . 7 Gun 64 | . 34 17 . . 13 . . . . . . . . Cannon 54 | . . . . . 45 1 . 4 3 1 . . . Launcher 5 | . . . . 3 . . . . 2 . . . . Special 7 | . . . . . . . . . . . . . 7 Kinetic 91 | . 34 3 . . 45 1 . 4 3 1 . . . Thermal 27 | . . 14 . . 13 . . . . . . . . Explosive 12 | . . . . 3 . . . . 2 . . . 7 Electromagnetic . | . . . . . . . . . . . . . . Robot Hit Streak 14 | . 4 14 . . 6 . . 2 3 1 . . 5 Robot Miss Streak 5 | . 2 2 . 1 5 1 . 3 2 . . . . Penetration Max 1 | . . . . . 1 . . . . . . . . Secondary Targets . | . . . . . . . . . . . . . . Shots Hit Robots 90 | . 22 18 . . 37 . . 2 1 6 . . 4 Core Hits 73 | . 9 4 . 4 35 1 . . 8 4 . . 8 Critical Kills . | . . . . . . . . . . . . . . Critical Parts Destroyed . | . . . . . . . . . . . . . . Critical Strikes 9 | . . 2 . . 5 . . . . 2 . . . Burn 1 | . . 1 . . . . . . . . . . . Blast 5 | . . . . . 5 . . . . . . . . Sever 3 | . . 1 . . . . . . . 2 . . . Melee Attacks 14 | . . 5 . . 1 . . . . 8 . . . Impact . | . . . . . . . . . . . . . . Slashing 14 | . . 5 . . 1 . . . . 8 . . . Piercing . | . . . . . . . . . . . . . . Sneak Attacks . | . . . . . . . . . . . . . . Combat Hostiles . | . . . . . . . . . . . . . . Follow-up Attacks . | . . . . . . . . . . . . . . Damage Inflicted 4224 | . 238 362 . 293 1478 64 7 106 211 213 . . 1252 Guns 602 | . 238 237 . . 127 . . . . . . . . Cannons 1482 | . . . . . 1249 63 . 105 28 37 . . . Explosions 1465 | . . . . 293 83 . . . 183 . . . 906 Melee 301 | . . 125 . . . . . . . 176 . . . Ramming 28 | . . . . . 19 1 7 1 . . . . . Kinetic 1733 | . 238 13 . . 1249 63 . 105 28 37 . . . Thermal 389 | . . 224 . 38 127 . . . . . . . . Explosive 1344 | . . . . 255 . . . . 183 . . . 906 Electromagnetic 83 | . . . . . 83 . . . . . . . . Impact . | . . . . . . . . . . . . . . Slashing 647 | . . 125 . . . . . . . 176 . . 346 Piercing . | . . . . . . . . . . . . . . Highest Corruption . | . . . . . . . . . . . . . . Average Corruption . | . . . . . . . . . . . . . . Corruption Purged . | . . . . . . . . . . . . . . Corruption Blocked . | . . . . . . . . . . . . . . Overload Shots . | . . . . . . . . . . . . . . Overflow Damage 218 | . . . . 21 73 38 . 8 6 . . . 72 Projectiles 141 | . . . . . 73 38 . 8 . . . . 22 Explosions 77 | . . . . 21 . . . . 6 . . . 50 Melee . | . . . . . . . . . . . . . . Knockbacks 5 | . . . . . 4 . . 1 . . . . . Impact . | . . . . . . . . . . . . . . Kinetic 5 | . . . . . 4 . . 1 . . . . . Secondary . | . . . . . . . . . . . . . . Self-Inflicted Damage 106 | . . . . 48 9 . 3 . 46 . . . . Shots 2 | . . . . 1 . . . . 1 . . . . Rammed 5 | . . . . . 2 1 1 1 . . . . . Targets Rammed 5 | . . . . . 2 1 1 1 . . . . . Kicked . | . . . . . . . . . . . . . . Crushed . | . . . . . . . . . . . . . . Highest Temperature 140 | . 5 . . . 140 6 . . . . . . . Average Temperature 30 | . 5 . . . 30 4 . . . . . . . Received Heat Transfer 634 | . 99 108 . . 162 . . . 33 205 9 9 9 Siege Activations . | . . . . . . . . . . . . . . Robots Corrupted . | . . . . . . . . . . . . . . Combat Hostiles . | . . . . . . . . . . . . . . Parts Fried 1 | . . . . . 1 . . . . . . . . Impact Corruptions . | . . . . . . . . . . . . . . Robots Melted . | . . . . . . . . . . . . . . Combat Hostiles . | . . . . . . . . . . . . . . Parts Melted 3 | . . 3 . . . . . . . . . . . Heat Transferred 765 | . . 555 . 50 160 . . . . . . . . Parts Sabotaged . | . . . . . . . . . . . . . . Parts Stolen . | . . . . . . . . . . . . . . Parts Stripped . | . . . . . . . . . . . . . . Power Chain Reactions . | . . . . . . . . . . . . . . Alert | -11 -10 -10 -10 -9 -8 -7 -6 -5 -4 -4 -4 -4 -3 ------- Run | Yrd Mat Min Exi Min Mat Fac Fac Fac Fac Upp Upp War Pro Peak Influence 314 | . 182 115 . 171 314 71 . 36 75 . . . . Initial 70 | . . 70 . . 66 25 . . 17 . . . . Average 59 | . 92 92 . 93 108 22 . 9 31 . . . . Maximum Alert Level 1 | . . . . . 1 . . . . . . . . Low Security (%) 98 | . 100 100 . 100 97 100 100 100 100 . . . . Level 1 1 | . . . . . 2 . . . . . . . . Level 2 . | . . . . . . . . . . . . . . Level 3 . | . . . . . . . . . . . . . . Level 4 . | . . . . . . . . . . . . . . Level 5 . | . . . . . . . . . . . . . . High Security . | . . . . . . . . . . . . . . Max Security . | . . . . . . . . . . . . . . Squads Dispatched 11 | . . . . . 4 1 1 2 3 . . . . Investigation 1 | . . . . . . . 1 . . . . . . Extermination 1 | . . . . . . 1 . . . . . . . Reinforcement 9 | . . . . . 4 . . 2 3 . . . . Assault . | . . . . . . . . . . . . . . Garrison . | . . . . . . . . . . . . . . Intercept . | . . . . . . . . . . . . . . Searches Triggered . | . . . . . . . . . . . . . . Construction Impeded 1 | . . . . . . . . . 1 . . . . Haulers Reinforced . | . . . . . . . . . . . . . . Active Scanning Responses . | . . . . . . . . . . . . . . Cargo Convoy Interrupts . | . . . . . . . . . . . . . . Stealth | -11 -10 -10 -10 -9 -8 -7 -6 -5 -4 -4 -4 -4 -3 --------- Run | Yrd Mat Min Exi Min Mat Fac Fac Fac Fac Upp Upp War Pro Distress Signals 7 | . 2 . . . 3 . 1 . 1 . . . . Communications Jammed . | . . . . . . . . . . . . . . Distress Signals . | . . . . . . . . . . . . . . Times Spotted 122 | . 11 3 . 4 22 7 3 11 15 15 6 16 9 Peak Tracking Total 12 | . 4 2 . 4 6 4 2 5 6 12 6 12 4 Tactical Retreats 10 | . 2 . . . 1 . . 1 . 4 2 . . Traps | -11 -10 -10 -10 -9 -8 -7 -6 -5 -4 -4 -4 -4 -3 ------- Run | Yrd Mat Min Exi Min Mat Fac Fac Fac Fac Upp Upp War Pro Traps Triggered 2 | . . 1 . . . . . 1 . . . . . Indirectly . | . . . . . . . . . . . . . . Trap Hack Attempts . | . . . . . . . . . . . . . . Triggered . | . . . . . . . . . . . . . . Disarmed . | . . . . . . . . . . . . . . Reprogrammed . | . . . . . . . . . . . . . . Reused . | . . . . . . . . . . . . . . Traps Extracted . | . . . . . . . . . . . . . . Installed . | . . . . . . . . . . . . . . Triggered 7 | . . . . . . . . . . 1 . 6 . Objects Rigged 8 | . . . . . 8 . . . . . . . . Exploded 6 | . . . . . 6 . . . . . . . . Machines | -11 -10 -10 -10 -9 -8 -7 -6 -5 -4 -4 -4 -4 -3 ---------- Run | Yrd Mat Min Exi Min Mat Fac Fac Fac Fac Upp Upp War Pro Machines Disabled 6 | . . . . 3 2 . . . 1 . . . . Max in Single Turn 3 | . . . . 3 1 . . . 1 . . . . Garrison Access 2 | . . . . . . . 1 1 . . . . . Machines Repaired . | . . . . . . . . . . . . . . Machines Dismantled . | . . . . . . . . . . . . . . Machines Sabotaged . | . . . . . . . . . . . . . . Overloaded Fab Kills . | . . . . . . . . . . . . . . Hacking | -11 -10 -10 -10 -9 -8 -7 -6 -5 -4 -4 -4 -4 -3 --------- Run | Yrd Mat Min Exi Min Mat Fac Fac Fac Fac Upp Upp War Pro Machines Accessed 16 | . . 1 1 . 7 . 1 2 2 . . 2 . Terminals 7 | . . . . . 6 . . 1 . . . . . Fabricators 2 | . . . . . . . . . 2 . . . . Repair Stations 1 | . . . . . 1 . . . . . . . . Recycling Units . | . . . . . . . . . . . . . . Scanalyzers . | . . . . . . . . . . . . . . Garrison Access 2 | . . . . . . . 1 1 . . . . . Total Hacks 32 | . . 1 1 . 18 . 1 5 3 . . 3 . Successful 19 | . . 1 1 . 10 . 1 1 2 . . 3 . Failed 13 | . . . . . 8 . . 4 1 . . . . Catastrophic 4 | . . . . . 3 . . 1 . . . . . Database Lockouts . | . . . . . . . . . . . . . . Manual 17 | . . . 1 . 12 . . 1 2 . . 1 . Terminals 16 | . . . . . 15 . . 1 . . . . . Fabricators 3 | . . . . . . . . . 3 . . . . Repair Stations 3 | . . . . . 3 . . . . . . . . Recycling Units . | . . . . . . . . . . . . . . Scanalyzers . | . . . . . . . . . . . . . . Garrison Access 5 | . . . . . . . 1 4 . . . . . Terminal Hacks 8 | . . 1 1 . 3 . . . . . . 3 . Record 2 | . . . . . . . . . . . . 2 . Robot Analysis 1 | . . . . . 1 . . . . . . . . Open Door 2 | . . 1 . . . . . . . . . 1 . Branch Access Points 1 | . . . . . 1 . . . . . . . . Zone Layout 1 | . . . . . 1 . . . . . . . . Derelict Proto ID Bank 1 | . . . 1 . . . . . . . . . . Fabricator Hacks 1 | . . . . . . . . . 1 . . . . Network Status 1 | . . . . . . . . . 1 . . . . Repair Station Hacks 2 | . . . . . 2 . . . . . . . . Scan Component 1 | . . . . . 1 . . . . . . . . Repair 1 | . . . . . 1 . . . . . . . . Recycling Unit Hacks . | . . . . . . . . . . . . . . Scanalyzer . | . . . . . . . . . . . . . . Garrison Access Hacks 2 | . . . . . . . 1 1 . . . . . Seal Access 2 | . . . . . . . 1 1 . . . . . Unauthorized Hacks 5 | . . . . . 4 . . . 1 . . . . Terminals 4 | . . . . . 4 . . . . . . . . Skim 4 | . . . . . 4 . . . . . . . . Fabricators 1 | . . . . . . . . . 1 . . . . Liberate 1 | . . . . . . . . . 1 . . . . Repair Stations . | . . . . . . . . . . . . . . Recycling Units . | . . . . . . . . . . . . . . Scanalyzers . | . . . . . . . . . . . . . . Garrison Access . | . . . . . . . . . . . . . . Data Cores Recovered . | . . . . . . . . . . . . . . Used . | . . . . . . . . . . . . . . Hacking Detections 7 | . . . . . 5 . . 1 1 . . . . Full Trace Events . | . . . . . . . . . . . . . . Feedback Events . | . . . . . . . . . . . . . . Feedback Blocked . | . . . . . . . . . . . . . . Robot Schematics Acquired . | . . . . . . . . . . . . . . Robots Built . | . . . . . . . . . . . . . . Authchips . | . . . . . . . . . . . . . . Time . | . . . . . . . . . . . . . . Total Robot Build Rating . | . . . . . . . . . . . . . . Part Schematics Acquired . | . . . . . . . . . . . . . . Parts Built . | . . . . . . . . . . . . . . Authchips . | . . . . . . . . . . . . . . Time . | . . . . . . . . . . . . . . Total Part Build Rating . | . . . . . . . . . . . . . . Parts Repaired 1 | . . . . . 1 . . . . . . . . Time 53 | . . . . . 53 . . . . . . . . Parts Recycled . | . . . . . . . . . . . . . . Recycled Matter . | . . . . . . . . . . . . . . Retrieved Matter . | . . . . . . . . . . . . . . Retrieved Components . | . . . . . . . . . . . . . . Parts Scanalyzed . | . . . . . . . . . . . . . . Part Schematics Acquired . | . . . . . . . . . . . . . . Parts Damaged . | . . . . . . . . . . . . . . Bothacking | -11 -10 -10 -10 -9 -8 -7 -6 -5 -4 -4 -4 -4 -3 ------------ Run | Yrd Mat Min Exi Min Mat Fac Fac Fac Fac Upp Upp War Pro Used RIF Installer . | . . . . . . . . . . . . . . Robots Hacked . | . . . . . . . . . . . . . . Non-combat . | . . . . . . . . . . . . . . Combat . | . . . . . . . . . . . . . . Robot Hacks Applied . | . . . . . . . . . . . . . . Relay Couplers Released . | . . . . . . . . . . . . . . Fabnet Peak Effective % . | . . . . . . . . . . . . . . Robots Rewired . | . . . . . . . . . . . . . . Allies Hacked . | . . . . . . . . . . . . . . Hacks Repelled . | . . . . . . . . . . . . . . Allies | -11 -10 -10 -10 -9 -8 -7 -6 -5 -4 -4 -4 -4 -3 -------- Run | Yrd Mat Min Exi Min Mat Fac Fac Fac Fac Upp Upp War Pro Total Allies 6 | . . . . . . . . . 6 . . . . Largest Group 6 | . . . . . . . . . 6 1 . . . Highest-Rated Group 269 | . . . . . . . . . 269 46 . . . Highest-Rated Ally 47 | . . . . . . . . . 47 46 . . . Total Orders . | . . . . . . . . . . . . . . Ally Attacks 12 | . . . . . . . . . 10 2 . . . Total Damage 273 | . . . . . . . . . 212 61 . . . Kills 2 | . . . . . . . . . 2 . . . . Allies Corrupted . | . . . . . . . . . . . . . . Allies Melted 1 | . . . . . . . . . . . . 1 . Intel | -11 -10 -10 -10 -9 -8 -7 -6 -5 -4 -4 -4 -4 -3 ------- Run | Yrd Mat Min Exi Min Mat Fac Fac Fac Fac Upp Upp War Pro Robot Analysis Total 1 | . . . . . 1 . . . . . . . . Derelict Logs Recovered . | . . . . . . . . . . . . . . Drone Launches . | . . . . . . . . . . . . . . Drone Recoveries . | . . . . . . . . . . . . . . Exploration | -11 -10 -10 -10 -9 -8 -7 -6 -5 -4 -4 -4 -4 -3 ------------- Run | Yrd Mat Min Exi Min Mat Fac Fac Fac Fac Upp Upp War Pro Turns Passed 6169 | . 277 222 247 33 1472 936 428 397 409 328 190 624 606 Spaces Moved 4610 | 1 170 136 206 16 1043 479 240 198 214 508 242 824 333 Core 242 | . . . . . 2 . . . . 1 . . 239 Treads 25 | . . . . 14 11 . . . . . . . . Legs 552 | 1 170 136 206 2 37 . . . . . . . . Wheels 1977 | . . . . . 815 479 240 198 214 31 . . . Hover 451 | . . . . . 178 . . . . 188 . 85 . Flight 1363 | . . . . . . . . . . 288 242 739 94 Fastest Speed 32 | 120 120 120 120 120 48 100 100 100 100 35 35 32 32 Average Speed 92 | 120 120 120 120 155 103 100 100 100 105 50 35 59 173 Slowest Speed 435 | 120 120 120 120 160 300 100 100 115 115 200 35 435 250 Overloaded Moves . | . . . . . . . . . . . . . . Propulsion Burnouts . | . . . . . . . . . . . . . . Robots Hopped 6 | . . . . . . . . . . 4 . 2 . Cave-ins Triggered . | . . . . . . . . . . . . . . Exploration Rate (%) 35 | 2 34 32 60 8 71 11 12 5 10 59 51 90 47 Regions Visited 13 Branch Regions 7 Pre-discovered Areas . | . . . . . . . . . . . . . . Known Exits Taken 7 | . . . . . . 1 1 1 1 1 1 1 . Unknown Exits Taken 6 | 1 1 1 1 1 1 . . . . . . . . Scrap Searched 5 | . . . . . . . . . . 3 1 . 1 Spaces Dug 4 | . . . . . 4 . . . . . . . . Terrain Destroyed 147 | . . . . 43 22 1 . 3 14 . . . 64 Melee . | . . . . . . . . . . . . . . Projectile 26 | . . . . . 22 1 . 3 . . . . . AOE 121 | . . . . 43 . . . . 14 . . . 64 Terrain Rammed . | . . . . . . . . . . . . . . Walls Destroyed . | . . . . . . . . . . . . . . Machines Disabled . | . . . . . . . . . . . . . . Actions | -11 -10 -10 -10 -9 -8 -7 -6 -5 -4 -4 -4 -4 -3 --------- Run | Yrd Mat Min Exi Min Mat Fac Fac Fac Fac Upp Upp War Pro Total 6338 | . 212 171 206 22 1365 933 428 389 393 561 346 957 355 Wait 1467 | . 24 9 . . 187 451 188 184 170 38 103 104 9 Move 4587 | . 169 135 205 15 1042 478 239 197 213 500 241 820 333 Hop 4 | . . . . . . . . . . 3 . 1 . Pick Up 29 | . 1 1 1 . 22 . . . . . . 4 . Fast Attach 34 | . 1 1 . . 14 2 . 3 1 5 1 6 . Attach 22 | . . 2 . 3 5 . . . 2 2 1 3 4 Detach 11 | . . . . . 5 . . . . 1 . 3 2 Swap 2 | . . 1 . . 1 . . . . . . . . Drop 51 | . . 3 . 1 26 . . . 2 3 . 16 . Fire 104 | . 17 14 . 3 52 1 . 4 5 1 . . 7 Melee 14 | . . 5 . . 1 . . . . 8 . . . Ram 5 | . . . . . 2 1 1 1 . . . . . Kick . | . . . . . . . . . . . . . . Crush . | . . . . . . . . . . . . . . Escape Stasis . | . . . . . . . . . . . . . . Rewire . | . . . . . . . . . . . . . . Trap 8 | . . . . . 8 . . . . . . . . Miscellaneous . | . . . . . . . . . . . . . . Route ------- -11/Scrapyard -10/Materials (discovered 2 exits: [*Mat] / *Min) -10/Mines -10/Exiles -9/Mines -8/Materials (discovered 2 exits: [*Fac x2]) -7/Factory -6/Factory -5/Factory -4/Factory -4/Upper Caves -4/Upper Caves -4/Warlord -3/Proximity Caves History --------- Turn | Location | Event 1 | -11/Scrapyard | Discovered new exit (range 0) 1 | -11/Scrapyard | Entered Materials 262 | -10/Materials | Discovered new exit (range 15) 262 | -10/Materials | Discovered new exit (range 13) 278 | -10/Materials | Entered Mines 282 | -10/Mines | Met a Derelict who couldn't figure out how to use a Trap Extractor 324 | -10/Mines | Build established: Mutant 450 | -10/Mines | Lost 4 parts (1p1n2w) 496 | -10/Mines | Deemed a non-threat by the Exiles lab entrance 496 | -10/Mines | Discovered new exit (range 5) 500 | -10/Mines | Entered Exiles 530 | -10/Exiles | Met 8R-AWN 551 | -10/Exiles | Met EX-HEX 584 | -10/Exiles | Met EX-BIN 599 | -10/Exiles | Aligned with FarCom system 600 | -10/Exiles | Given EX-Vault access code 628 | -10/Exiles | Opened EX-Vault 634 | -10/Exiles | Found PSU Rigger 657 | -10/Exiles | Warned to stay clear of 0b10 Research branches 693 | -10/Exiles | Met EX-DEC 735 | -10/Exiles | Discovered new exit (range 10) 747 | -10/Exiles | Left Exiles lab with PSU Rigger 747 | -10/Exiles | Entered Mines 760 | -9/Mines | Discovered new exit (range 11) 761 | -9/Mines | Core integrity fell below 50% 780 | -9/Mines | Entered Materials 780 | -8/Materials | Evolved 4 slots: Propulsion x2, Utility x2 1049 | -8/Materials | Lost 4 parts (3n1u) 1532 | -8/Materials | Repaired Corrupted Machine Analyzer 1981 | -8/Materials | Discovered new exit (range 8) 2202 | -8/Materials | Met 7R-MNS 2245 | -8/Materials | Discovered new exit (range 5) 2252 | -8/Materials | Entered Factory 2252 | -7/Factory | Evolved 2 slots: Utility x2 2253 | -7/Factory | Caught up to 7R-MNS 3178 | -7/Factory | Discovered new exit (range 6) 3186 | -7/Factory | Identified exit to Factory 3188 | -7/Factory | Entered another Factory area 3188 | -6/Factory | Evolved 2 slots: Utility x2 3189 | -6/Factory | Caught up to 7R-MNS 3605 | -6/Factory | Discovered new exit (range 9) 3615 | -6/Factory | Identified exit to Factory 3616 | -6/Factory | Entered another Factory area 3616 | -5/Factory | Evolved 2 slots: Power x1, Utility x1 3617 | -5/Factory | Caught up to 7R-MNS 3977 | -5/Factory | Discovered new exit (range 13) 4006 | -5/Factory | Identified exit to Factory 4013 | -5/Factory | Entered another Factory area 4013 | -4/Factory | Evolved 2 slots: Utility x2 4014 | -4/Factory | Caught up to 7R-MNS 4194 | -4/Factory | Spotted B-86 Titan 4329 | -4/Factory | Allied Derelicts emerged from ambush trap array 4380 | -4/Factory | Lost 4 allies 4400 | -4/Factory | Build established: Hacker-Mutant 4403 | -4/Factory | Discovered new exit (range 8) 4419 | -4/Factory | 7R-MNS successfully reached the Upper Caves 4420 | -4/Factory | Identified exit to Upper Caves 4422 | -4/Factory | Entered Upper Caves 4422 | -4/Upper Caves | Accompanied by 1 ally 4498 | -4/Upper Caves | Encountered a Warlord checkpoint 4677 | -4/Upper Caves | Lost 5 parts (2n1u2w) 4713 | -4/Upper Caves | Spotted B-86 Titan 4714 | -4/Upper Caves | Core integrity fell below 50% 4747 | -4/Upper Caves | Discovered new exit (range 9) 4749 | -4/Upper Caves | Identified exit to Upper Caves 4750 | -4/Upper Caves | Entered another Upper Caves area 4767 | -4/Upper Caves | Spotted B-86 Titan 4824 | -4/Upper Caves | Encountered a Warlord checkpoint 4935 | -4/Upper Caves | Discovered new exit (range 10) 4938 | -4/Upper Caves | Identified exit to Warlord 4940 | -4/Upper Caves | Entered Warlord 5002 | -4/Warlord | Build established: Mutant 5014 | -4/Warlord | Received a Watcher feed algorithm from an ecstatic Tinkerer 5035 | -4/Warlord | Visited the Vortex Lab 5042 | -4/Warlord | Found Prototype Energy Gun 5044 | -4/Warlord | Found Prototype Energy Gun 5057 | -4/Warlord | Warlord's base attacked by MAIN.C 5110 | -4/Warlord | Met Warlord 5147 | -4/Warlord | Found Prototype Special Weapon 5147 | -4/Warlord | Identified RU-N14's Throwing Claymores v3 5149 | -4/Warlord | Identified Vortex Rail (x2) 5176 | -4/Warlord | Found RU-N14's Throwing Claymores v3 5180 | -4/Warlord | Found RU-N14's Throwing Claymores v3 5353 | -4/Warlord | Build established: Hacker-Mutant 5407 | -4/Warlord | Warlord forces counterattacked 5445 | -4/Warlord | Spotted Striker 5471 | -4/Warlord | Spotted Executioner 5515 | -4/Warlord | Discovered new exit (range 12) 5517 | -4/Warlord | Lost 10 allies 5526 | -4/Warlord | Identified exit to Proximity Caves 5564 | -4/Warlord | Entered Proximity Caves 5593 | -3/Proximity Caves | Lost 3 allies 5614 | -3/Proximity Caves | Core integrity fell below 20% 6006 | -3/Proximity Caves | Lost 3 parts (3u) 6167 | -3/Proximity Caves | Spotted B-86 Titan 6170 | -3/Proximity Caves | Destroyed by B-86 Titan with Railgun Last Messages --------------- 05958_ Destroyed Lgt. Antimatter Reactor. 05958_ S-43 Plague destroyed. 05960_ RU-N14's Throwing Claymores v3 expended. 05960_ S-43 Plague destroyed. 05962_ The unstable cave ceiling collapses. 05966_ Core Analyzer destroyed. 05967_ S-43 Plague destroyed. 05972_ Acquired 5 matter. 05973_ Hacking Suite destroyed. 05975_ Imp. Matter Compressor destroyed. 05976_ Hvy. Machine Gun fries itself beyond repair. 05976_ The unstable cave ceiling collapses. 05977_ S-43 Plague destroyed. 05981_ Lgt. Antimatter Reactor fries itself beyond repair. 05985_ The unstable cave ceiling collapses. 05987_ Hvy. Machine Gun fries itself beyond repair. 05996_ The unstable cave ceiling collapses. 06022_ 5X-UIT(k) breaks down the debris. 06170_ Penetrated by Slug. Map ----- +----------------------------------------------------+ | ???????????????????????????????????????????????? | | ??????????????????????????????????????????????? | | % ??????????????????????????????????????????????? | | ?% ?????????????????????????????????????????????? | | % % #????????????????????????????????????????????? | | #???????????????????????????????????????????? | | ? ????####???????????????????????????????????? | | ?#% ##??# ##??????????????????????????????????? | | ?# #? ##?????????????????????????????????? | | ?# #? ####??????????????????????????????? | | ??# #?# ##???? ## ?????????????????????? | | ??# #?# ##??? $ ???????????????????? | | ??# % ### #??? ??????????????????? | | ???% % #??# BB ?????????????????? | | ????# ##?# BB ?????????????????? | | ##### #?# #?????????????????? | | % % #?? ??????????????????? | | % #??? ???????????????????? | | ##### ####???? ????????????????????? | | ????## ##??????? ?????????????????????? | | ????## ### #???????? ;?????????????????????? | | ???## ##?## ##?????##; ##????????????????????? | | ???# ##???# #######;# #????????????????????? | | ???# ##???## ## #????????????????????? | | #### ##???## ##???????????????????? | | #????## @ #???????????????????? | | #?????####### #??????????????????? | | ###### ##???????????## #?????????????????? | | ?????#####?????????????# ??????????????? | | ???????????????????????###### ##?????????????? | | ?????????????????????????????# ###??????????????? | | ??????????????????????????????###????????????????? | | ?????????????????????????????????????????????????? | | ?????????????????????????????????????????????????? | | ?????????????????????????????????????????????????? | | ?????????????????????????????????????????????????? | | ?????????????????????????????????????????????????? | | ?????????????????????????????????????????????????? | | ?????????????????????????????????????????????????? | | ?????????????????????????????????????????????????? | | ?????????????????????????????????????????????????? | | ?????????????????????????????????????????????????? | | ?????????????????????????????????????????????????? | | ?????????????????????????????????????????????????? | | ?????????????????????????????????????????????????? | | ?????????????????????????????????????????????????? | | ?????????????????????????????????????????????????? | | | | | | | +----------------------------------------------------+ Best States ------------- Heat Dissipation 62 Energy Generation 17 Energy Capacity 290 Matter Stores 600 Matter Capacity 600 Sight Range 16 Terrain Scan Density 10 Base Temperature (-) 200 Point Defense Rating 80 Evasion (%) 63 Core Analysis 9 Recoil Reduction 2 Offensive Hacking 20 Item Schematics ----------------- None Robot Schematics ------------------ None Fabricated ------------ Nothing Alien Tech Used ----------------- None Achievements -------------- None Challenges ------------ None Game ------ Seed ThunderLayeredTreads Manual? 0 Play Time 00:45:50 Cumulative 98.9 hours Start 2024.08.13 @ 18:12:28 End 2024.08.13 @ 18:57:40 Sessions 1 Manual Loads 0 Difficulty Rogue Special Mode None Game No. 167 Rogue 166 Adventurer 1 Explorer 0 Win Type - Total 0 Types 0/0/0/0/0/0/0/0/0 Lore% 59 Gallery% 62 Achievement% 48 Wizard Run 0 Options --------- Layout 1 ASCII 0 Keyboard 0 Movement Mouse Keybinds 0 Fullscreen 2 Font 20/SmallcapsGlow Map View 54x42 Zoom Use 0% Tactical HUD 1 Map Filters NONE Filters NONE Steam 0 RUN: cacc5c63-b47a-495b-a4a2-d516698579f7